bitfinex/quotes_SOLUSD_20220211
["timestamp","ask_amount","ask_price","bid_price","bid_amount"]
[1644589053308,1.32484655,107.3,107.24,10.75]
[1644589053507,52.61298437,107.31,107.25,14.77658937]
[1644589053707,1.32484655,107.3,107.25,14.77658937]
[1644589054308,1.32484655,107.31,107.26,15.91]
[1644589054508,1.32484655,107.31,107.26,21.91]
[1644589054708,48.10250093,107.33,107.27,51.18878234]
[1644589054908,48.06869278,107.33,107.28,15.909]
[1644589055409,1.32484655,107.33,107.28,11.5]
[1644589055911,1.32484655,107.32,107.28,11.5]
[1644589056109,1.32484655,107.33,107.28,11.5]
[1644589056310,1.32484655,107.32,107.29,19.99462007]
[1644589056515,1.32484655,107.33,107.3,11.25]
[1644589056909,1.32484655,107.32,107.3,11.25]
[1644589057111,1.32484655,107.31,107.3,11.25]
[1644589057314,1.32484655,107.31,107.25,140.68]
[1644589057515,1.57484655,107.32,107.27,11.25]
[1644589057713,1.32484655,107.31,107.28,9.7686275]
[1644589057912,1.32484655,107.31,107.29,6.06439994]
[1644589058313,1.32484655,107.31,107.29,17.31439994]
[1644589058514,1.32484655,107.32,107.29,17.31439994]
[1644589059018,1.32484655,107.31,107.3,37.53398256]
[1644589059214,1.32484655,107.32,107.3,11.5]
[1644589059415,1.32484655,107.32,107.31,6.06439994]
[1644589059816,5.29104259,107.34,107.31,6.06439994]
[1644589060016,5.29104259,107.34,107.31,6.31439994]
[1644589060218,1.32057393,107.32,107.31,6.31439994]
[1644589060617,1.32057393,107.32,107.31,6.06439994]
[1644589060820,5.29243842,107.34,107.31,6.06439994]
[1644589061020,2.64969311,107.33,107.31,6.06439994]
[1644589061218,5.29243842,107.33,107.31,6.06439994]
[1644589061418,49.38969311,107.34,107.31,6.06439994]
[1644589061621,49.13969311,107.34,107.31,6.06439994]
[1644589061820,5.29410762,107.33,107.31,6.06439994]
[1644589062018,2.64969311,107.34,107.31,25.24455762]
[1644589062219,2.64969311,107.34,107.31,36.74455762]
[1644589062418,1.32201174,107.32,107.31,36.74455762]
[1644589062820,1.32201174,107.32,107.31,17.56439994]
[1644589063218,1.32201174,107.32,107.31,33.92796785]
[1644589063423,2.64969311,107.36,107.31,33.92796785]
[1644589063622,0.03380815,107.36,107.31,44.76896785]
[1644589063828,2.64969311,107.37,107.32,41.88026491]
[1644589064020,5.29329024,107.38,107.33,11.25]
[1644589064227,5.29329024,107.38,107.33,25.4755]
[1644589064424,2.64969311,107.38,107.33,25.4755]
[1644589064624,3.15135371,107.39,107.34,13.99762576]
[1644589064827,3.11754556,107.39,107.34,27.88129367]
[1644589065050,0.46785245,107.39,107.34,27.88129367]
[1644589065456,0.46785245,107.39,107.35,2.38366791]
[1644589065651,0.46785245,107.39,107.36,11.25]
[1644589065852,0.46785245,107.39,107.37,6.06439994]
[1644589068256,5.12385245,107.39,107.34,11.25]
[1644589068456,0.46785245,107.39,107.34,11.25]
[1644589068761,44.13206921,107.39,107.34,11.25]
[1644589069859,4.657,107.38,107.34,11.25]
[1644589070058,4.657,107.38,107.3,4.657]
[1644589070260,4.657,107.38,107.29,4.657]
[1644589070261,6.0,107.37,107.29,4.657]
[1644589070461,13.9838,107.35,107.27,25.2345]
[1644589070660,24.1948,107.35,107.27,16.36816791]
[1644589070860,24.1948,107.35,107.27,13.9845]
[1644589071060,40.51227967,107.34,107.28,43.96648896]
[1644589071463,18.67420815,107.36,107.28,71.58375687]
[1644589071663,0.03380815,107.36,107.28,71.58375687]
[1644589071862,6.03380815,107.37,107.28,71.83375687]
[1644589072169,0.03380815,107.36,107.28,71.83375687]
[1644589072363,41.29060561,107.37,107.28,71.83375687]
[1644589072565,41.29060561,107.37,107.29,4.658]
[1644589072762,41.29060561,107.37,107.31,13.9786]
[1644589072968,48.59829872,107.37,107.32,11.25]
[1644589073166,48.56449057,107.37,107.32,11.25]
[1644589073365,48.56449057,107.37,107.3,11.25]
[1644589073577,48.56449057,107.37,107.29,11.5]
[1644589073765,48.81449057,107.37,107.29,11.5]
[1644589073963,48.81449057,107.37,107.29,11.25]
[1644589074366,5.28741396,107.36,107.29,11.5]
[1644589074564,45.94938506,107.35,107.29,11.5]
[1644589074767,45.94938506,107.35,107.29,25.2319]
[1644589075164,45.94938506,107.35,107.3,19.67501854]
[1644589075966,6.62423277,107.46,107.37,2.38366791]
[1644589076165,4.658,107.48,107.38,11.25]
[1644589076465,6.62423277,107.5,107.38,11.25]
[1644589076466,4.655,107.5,107.39,11.25]
[1644589076664,62.1744,107.51,107.39,13.63366791]
[1644589076865,42.79158915,107.5,107.42,13.9656]
[1644589077064,47.44358915,107.5,107.42,13.9656]
[1644589077264,47.44358915,107.5,107.4,13.63366791]
[1644589077467,61.41098915,107.5,107.4,11.25]
[1644589078168,6.0,107.49,107.33,4.655]
[1644589078366,116.455,107.48,107.33,4.655]
[1644589078568,52.49,107.47,107.31,2.38366791]
[1644589078766,18.6282,107.46,107.34,11.25]
[1644589078969,37.90285809,107.45,107.34,11.25]
[1644589079166,4.655,107.44,107.34,29.8801]
[1644589079366,41.15954199,107.43,107.34,32.26376791]
[1644589079568,47.15954199,107.43,107.34,32.51376791]
[1644589079776,47.15954199,107.43,107.34,32.26376791]
[1644589079972,4.656,107.42,107.34,25.2251]
[1644589080368,4.656,107.42,107.34,25.4751]
[1644589080768,39.47585422,107.41,107.34,25.4751]
[1644589080970,45.47585422,107.41,107.34,25.2251]
[1644589081269,45.47585422,107.41,107.33,4.656]
[1644589081569,45.47585422,107.41,107.32,15.906]
[1644589081570,4.656,107.4,107.32,15.906]
[1644589081769,6.0,107.39,107.32,11.25]
[1644589081968,47.84587989,107.39,107.32,11.25]
[1644589082570,48.09587989,107.39,107.32,11.25]
[1644589082768,48.09587989,107.39,107.32,25.2289]
[1644589083170,48.09587989,107.39,107.32,13.9789]
[1644589083670,48.09587989,107.39,107.32,25.2289]
[1644589083869,42.09587989,107.39,107.32,25.2289]
[1644589084770,42.09587989,107.39,107.32,25.4789]
[1644589084969,41.84587989,107.39,107.32,25.2289]
[1644589085369,4.657,107.38,107.32,25.2289]
[1644589085771,41.84587989,107.39,107.32,27.86256791]
[1644589085971,41.84587989,107.39,107.33,4.657]
[1644589086171,41.84587989,107.39,107.34,25.2231]
[1644589086371,41.84587989,107.39,107.35,4.657]
[1644589086571,41.84587989,107.39,107.36,11.25]
[1644589086872,41.84587989,107.39,107.37,3.03219997]
[1644589088272,41.84587989,107.39,107.37,3.28219997]
[1644589088473,41.84587989,107.39,107.37,3.03219997]
[1644589089076,41.84587989,107.39,107.38,3.03219997]
[1644589089275,24.1163,107.42,107.38,3.03219997]
[1644589089474,43.5286,107.44,107.38,3.03219997]
[1644589089674,6.0,107.43,107.38,3.03219997]
[1644589089876,4.655,107.42,107.38,3.03219997]
[1644589090075,4.655,107.42,107.39,11.25]
[1644589090278,44.01168574,107.42,107.4,3.03219997]
[1644589090475,44.01168574,107.42,107.39,11.25]
[1644589091076,44.01168574,107.42,107.39,25.2197]
[1644589091276,44.01168574,107.42,107.39,25.4697]
[1644589091676,44.01168574,107.42,107.4,6.06439994]
[1644589091976,4.6883597,107.46,107.4,6.06439994]
[1644589092175,4.655,107.46,107.4,17.56439994]
[1644589092575,4.655,107.46,107.4,17.31439994]
[1644589092779,40.05695372,107.45,107.4,17.56439994]
[1644589093175,40.30695372,107.45,107.4,25.2187]
[1644589093580,40.30695372,107.45,107.4,11.25]
[1644589094176,4.655,107.46,107.4,25.4686]
[1644589094377,0.0333597,107.47,107.4,25.4686]
[1644589094576,0.0333597,107.48,107.4,25.4686]
[1644589094779,6.0333597,107.49,107.41,4.652]
[1644589094977,6.0,107.49,107.42,11.25]
[1644589095177,46.10163071,107.48,107.42,11.25]
[1644589095580,4.652,107.47,107.42,11.25]
[1644589096181,6.0,107.46,107.42,11.25]
[1644589096381,4.652,107.45,107.38,11.25]
[1644589096580,43.92730555,107.44,107.38,11.25]
[1644589096882,48.37408936,107.42,107.38,11.25]
[1644589097280,6.0333597,107.44,107.38,11.5]
[1644589097481,6.0,107.44,107.39,4.655]
[1644589097680,0.0333597,107.46,107.4,25.2178]
[1644589097882,46.8501,107.47,107.4,25.2178]
[1644589097883,0.0333597,107.47,107.4,25.2178]
[1644589098081,0.0333597,107.48,107.4,25.2178]
[1644589098284,36.08045672,107.48,107.4,25.4678]
[1644589098481,42.08045672,107.48,107.4,25.4678]
[1644589098709,42.33045672,107.48,107.4,25.4678]
[1644589099407,42.33045672,107.48,107.41,4.652]
[1644589099607,42.08045672,107.48,107.43,13.9644]
[1644589099809,42.08045672,107.48,107.43,25.4644]
[1644589100608,42.08045672,107.48,107.43,25.2144]
[1644589100808,4.652,107.47,107.43,25.2144]
[1644589101209,4.652,107.47,107.43,11.25]
[1644589101409,4.652,107.47,107.42,13.9661]
[1644589101610,47.27681201,107.46,107.41,11.25]
[1644589103011,4.652,107.45,107.41,11.25]
[1644589103210,44.22181896,107.44,107.41,11.25]
[1644589104211,4.6873597,107.47,107.41,11.25]
[1644589104414,6.0,107.46,107.42,6.06439994]
[1644589104614,4.652,107.47,107.42,6.06439994]
[1644589104812,4.652,107.49,107.43,11.25]
[1644589105012,52.1849597,107.5,107.43,11.25]
[1644589105213,46.72980365,107.49,107.43,11.5]
[1644589105615,46.72980365,107.49,107.44,13.9634]
[1644589107616,6.0,107.49,107.44,13.9634]
[1644589108218,6.0,107.49,107.44,14.2134]
[1644589108518,0.0333597,107.51,107.45,11.25]
[1644589108717,62.74009128,107.52,107.46,13.9606]
[1644589108925,0.0333597,107.52,107.46,13.9606]
[1644589109116,0.0333597,107.53,107.46,25.2106]
[1644589109316,50.7151597,107.54,107.46,25.2106]
[1644589109716,50.9651597,107.54,107.46,25.2106]
[1644589109916,46.43156862,107.53,107.47,6.16244929]
[1644589110118,60.39186862,107.53,107.47,13.9591]
[1644589110318,6.0,107.52,107.47,13.9591]
[1644589111225,39.81099391,107.51,107.47,13.9591]
[1644589111720,39.81099391,107.51,107.46,25.2112]
[1644589111918,39.81099391,107.51,107.46,11.25]
[1644589112119,4.651,107.5,107.46,11.25]
[1644589112320,39.46142631,107.49,107.46,11.25]
[1644589112530,4.652,107.52,107.46,11.25]
[1644589112820,6.0,107.51,107.46,11.25]
[1644589113019,4.651,107.5,107.46,11.25]
[1644589113224,18.6151,107.5,107.43,25.2137]
[1644589113621,6.0,107.49,107.43,25.2137]
[1644589113823,47.50560452,107.48,107.43,25.2137]
[1644589114023,4.652,107.48,107.43,11.25]
[1644589114223,13.9940597,107.53,107.43,11.5]
[1644589114424,0.0333597,107.5,107.44,10.651]
[1644589114623,0.0333597,107.52,107.45,11.25]
[1644589114824,18.6450597,107.53,107.45,11.5]
[1644589115122,34.27573922,107.52,107.46,17.03769876]
[1644589115322,34.27573922,107.52,107.47,11.25]
[1644589115739,34.27573922,107.52,107.47,11.5]
[1644589116223,34.52573922,107.52,107.47,11.5]
[1644589116828,34.52573922,107.52,107.47,25.4589]
[1644589117025,34.27573922,107.52,107.47,25.4589]
[1644589117449,34.27573922,107.52,107.47,25.2089]
[1644589120030,13.9605,107.53,107.47,25.2089]
[1644589120231,4.651,107.53,107.47,25.2089]
[1644589120435,111.8333597,107.54,107.47,30.1099]
[1644589120638,111.8333597,107.54,107.47,29.8599]
[1644589120836,6.0,107.53,107.47,29.8599]
[1644589121133,35.94819918,107.52,107.47,29.8599]
[1644589121332,35.94819918,107.52,107.47,25.2089]
[1644589121533,36.19819918,107.52,107.47,25.2089]
[1644589122737,0.25,107.52,107.47,25.2089]
[1644589123136,4.651,107.53,107.47,25.2089]
[1644589123439,6.0333597,107.54,107.47,25.2089]
[1644589123637,36.08782958,107.53,107.47,25.2089]
[1644589123839,40.73882958,107.53,107.47,25.2089]
[1644589124236,40.73882958,107.53,107.47,25.4589]
[1644589124839,40.73882958,107.53,107.47,25.2089]
[1644589125051,40.73882958,107.53,107.47,25.4589]
[1644589125352,40.98882958,107.53,107.47,25.4589]
[1644589126154,40.98882958,107.53,107.47,30.1099]
[1644589126556,40.98882958,107.53,107.47,29.8599]
[1644589126752,40.98882958,107.53,107.45,11.25]
[1644589126753,6.0,107.52,107.45,11.25]
[1644589126953,4.651,107.51,107.42,11.25]
[1644589127554,37.0210585,107.5,107.42,11.25]
[1644589127757,18.6166,107.49,107.42,11.25]
[1644589127955,38.23751668,107.48,107.42,25.2157]
[1644589128559,38.23751668,107.48,107.42,25.4657]
[1644589128755,38.23751668,107.48,107.43,4.652]
[1644589128959,38.23751668,107.48,107.44,13.9627]
[1644589129156,0.0333597,107.5,107.44,13.9627]
[1644589129356,23.3685,107.52,107.44,13.9627]
[1644589129357,0.0333597,107.51,107.45,15.902]
[1644589129556,4.652,107.52,107.45,11.25]
[1644589129959,18.6128,107.52,107.45,11.25]
[1644589130157,50.39352971,107.51,107.44,13.9633]
[1644589130359,4.652,107.5,107.44,13.9633]
[1644589130557,39.2993394,107.49,107.44,13.9633]
[1644589131758,39.2993394,107.49,107.44,18.8653]
[1644589131960,39.2993394,107.49,107.45,25.2117]
[1644589132159,39.2993394,107.49,107.43,11.25]
[1644589132360,4.652,107.48,107.41,15.902]
[1644589132561,39.2993394,107.49,107.41,15.902]
[1644589132760,4.652,107.48,107.41,15.902]
[1644589133159,38.68480356,107.47,107.41,15.902]
[1644589133459,52.65220356,107.47,107.41,29.8694]
[1644589133663,52.65220356,107.47,107.29,4.45]
[1644589133664,4.652,107.46,107.29,4.45]
[1644589133861,58.1916,107.46,107.3,57.6356]
[1644589134060,60.57526791,107.46,107.3,57.6356]
[1644589134260,2.38366791,107.45,107.3,57.6356]
[1644589134460,53.5396,107.46,107.31,4.656]
[1644589134663,53.53895758,107.44,107.32,11.25]
[1644589134860,47.53895758,107.44,107.33,8.95658416]
[1644589135061,47.59377657,107.42,107.34,25.2244]
[1644589135260,47.59377657,107.42,107.35,4.655]
[1644589135560,47.59377657,107.42,107.35,21.63871015]
[1644589135961,47.59377657,107.42,107.36,11.25]
[1644589136164,47.84377657,107.42,107.37,4.655]
[1644589136360,47.84377657,107.42,107.36,11.25]
[1644589136564,47.84377657,107.42,107.36,25.2222]
[1644589137671,47.84377657,107.42,107.34,51.2257]
[1644589137672,4.655,107.41,107.33,22.5723]
[1644589137861,4.655,107.41,107.33,33.8223]
[1644589138360,4.655,107.41,107.33,34.0723]
[1644589138560,50.99267587,107.4,107.33,34.0723]
[1644589138762,50.99267587,107.4,107.33,48.0479]
[1644589139863,55.89967587,107.4,107.33,48.0479]
[1644589140264,51.24267587,107.4,107.33,47.7979]
[1644589140467,51.24267587,107.4,107.33,25.2256]
[1644589140665,4.657,107.39,107.33,25.2256]
[1644589140870,36.75543888,107.38,107.32,13.9779]
[1644589143471,4.657,107.37,107.32,13.9779]
[1644589143671,45.94279737,107.36,107.32,13.9779]
[1644589143873,51.94279737,107.36,107.3,48.6614]
[1644589144071,51.94279737,107.36,107.3,48.9114]
[1644589144671,51.94279737,107.36,107.3,25.4794]
[1644589145772,46.19279737,107.36,107.3,25.4794]
[1644589146373,0.25,107.36,107.3,27.86306791]
[1644589146571,0.25,107.36,107.3,27.61306791]
[1644589146771,27.458,107.39,107.3,27.61306791]
[1644589147372,38.73849433,107.38,107.3,27.61306791]
[1644589147571,38.73849433,107.38,107.3,25.2294]
[1644589148574,4.658,107.37,107.3,25.2294]
[1644589148773,46.26655492,107.36,107.3,25.2294]
[1644589149586,46.26655492,107.36,107.3,27.61306791]
[1644589149776,46.26655492,107.36,107.3,27.86306791]
[1644589149974,46.26655492,107.36,107.32,13.976]
[1644589150174,46.26655492,107.36,107.32,25.476]
[1644589150874,46.26655492,107.36,107.32,25.226]
[1644589151075,46.26655492,107.36,107.32,13.976]
[1644589151275,4.658,107.35,107.3,25.23]
[1644589151974,40.07143052,107.34,107.3,25.23]
[1644589152774,40.07143052,107.34,107.3,25.48]
[1644589153978,40.07143052,107.34,107.3,25.23]
[1644589154377,29.5313,107.37,107.3,25.48]
[1644589154579,29.7813,107.37,107.3,25.48]
[1644589154776,29.7813,107.37,107.3,25.23]
[1644589155178,29.7813,107.37,107.3,13.98]
[1644589155179,6.0,107.36,107.3,13.98]
[1644589155377,4.658,107.35,107.3,13.98]
[1644589155977,51.148,107.41,107.3,13.98]
[1644589156181,13.9788,107.39,107.32,13.9788]
[1644589156581,6.0,107.38,107.32,13.9788]
[1644589156978,37.81718651,107.37,107.32,13.9788]
[1644589157179,10.657,107.36,107.32,13.9788]
[1644589157783,48.59707542,107.35,107.32,13.9788]
[1644589158180,6.0,107.34,107.32,13.9788]
[1644589158789,53.25507542,107.35,107.32,13.9788]
[1644589158983,48.59707542,107.35,107.32,13.9788]
[1644589161985,48.59707542,107.35,107.31,11.25]
[1644589162184,4.658,107.34,107.24,3.9636893]
[1644589162387,20.80166791,107.34,107.25,11.25]
[1644589162585,44.6302957,107.33,107.26,4.52120347]
[1644589162784,10.66,107.32,107.26,4.52120347]
[1644589162984,24.6479,107.32,107.25,18.50910347]
[1644589163183,24.6479,107.32,107.25,13.9879]
[1644589163785,41.96806741,107.31,107.25,13.9879]
[1644589163992,47.8490784,107.29,107.25,13.9879]
[1644589166288,4.66,107.34,107.25,13.9879]
[1644589166488,4.66,107.34,107.25,16.62156791]
[1644589166687,6.0,107.33,107.25,51.64266791]
[1644589167087,4.66,107.34,107.25,51.64266791]
[1644589167288,42.6253753,107.33,107.25,51.64266791]
[1644589167493,42.6253753,107.33,107.25,51.39266791]
[1644589167690,42.6253753,107.33,107.25,25.2379]
[1644589167888,6.0,107.32,107.25,25.2379]
[1644589168089,4.66,107.31,107.25,13.9879]
[1644589168294,4.66,107.31,107.25,27.4279]
[1644589168490,48.19862434,107.3,107.25,27.4279]
[1644589168690,4.66,107.29,107.25,13.9879]
[1644589168891,42.41032102,107.28,107.25,13.9879]
[1644589169292,6.0,107.32,107.26,6.06439994]
[1644589169499,6.0,107.32,107.25,13.9879]
[1644589169694,14.2368,107.32,107.25,13.9879]
[1644589170094,6.0,107.31,107.25,13.9879]
[1644589170295,20.487,107.31,107.25,13.9879]
[1644589170495,46.73412264,107.3,107.25,13.9879]
[1644589171196,46.73412264,107.3,107.25,14.2379]
[1644589171396,46.73412264,107.3,107.25,27.6779]
[1644589172198,4.66,107.34,107.25,27.6779]
[1644589172398,4.66,107.34,107.26,8.38366791]
[1644589172697,4.66,107.34,107.28,13.9826]
[1644589173297,35.3326662,107.33,107.28,13.9826]
[1644589173711,35.3326662,107.33,107.27,13.9855]
[1644589173912,4.659,107.32,107.27,13.9855]
[1644589174112,4.659,107.32,107.25,35.9949]
[1644589174313,51.149,107.32,107.25,13.44]
[1644589174517,39.87789367,107.31,107.25,13.44]
[1644589174716,4.66,107.3,107.25,13.44]
[1644589174914,10.66,107.3,107.23,2.64550497]
[1644589175116,10.66,107.3,107.23,13.44]
[1644589175717,47.86007844,107.29,107.23,13.44]
[1644589175916,4.66,107.28,107.24,13.9894]
[1644589176116,43.46427362,107.27,107.24,13.9894]
[1644589176314,43.46427362,107.27,107.22,60.0666]
[1644589176315,43.46427362,107.27,107.22,13.44]
[1644589177719,43.46427362,107.27,107.23,13.9907]
[1644589178320,43.71427362,107.27,107.23,13.9907]
[1644589182327,0.25,107.27,107.23,13.9907]
[1644589182522,4.662,107.3,107.23,13.9907]
[1644589182722,4.662,107.3,107.25,13.9872]
[1644589182923,4.66,107.33,107.25,13.9872]
[1644589183122,4.66,107.33,107.25,30.06086791]
[1644589183521,41.21588888,107.32,107.25,30.06086791]
[1644589183726,41.21588888,107.32,107.26,1.3205157]
[1644589183924,41.21588888,107.32,107.27,13.9842]
[1644589184227,4.66,107.33,107.27,27.6742]
[1644589184422,4.659,107.34,107.27,30.05786791]
[1644589184625,4.659,107.34,107.27,31.37838361]
[1644589184925,4.659,107.35,107.27,31.37838361]
[1644589185328,50.45588997,107.34,107.28,1.3205157]
[1644589185523,50.45588997,107.34,107.29,13.9817]
[1644589185722,50.70588997,107.34,107.29,13.9817]
[1644589189726,4.659,107.33,107.29,13.9817]
[1644589189924,4.659,107.33,107.28,13.9844]
[1644589190328,41.66267676,107.32,107.28,13.9844]
[1644589190524,4.659,107.31,107.26,1.3205157]
[1644589190724,57.72183972,107.3,107.25,1.3205157]
[1644589191128,4.66,107.29,107.25,1.3205157]
[1644589191527,4.66,107.29,107.24,1.3205157]
[1644589191727,6.0,107.28,107.24,1.3205157]
[1644589191925,4.66,107.27,107.24,1.3205157]
[1644589192125,45.49107315,107.26,107.24,1.3205157]
[1644589193226,45.49107315,107.26,107.24,15.3104157]
[1644589193427,6.0,107.28,107.24,15.3104157]
[1644589193627,0.25,107.27,107.24,15.3104157]
[1644589193827,6.25,107.28,107.24,15.3104157]
[1644589194428,40.03603657,107.27,107.24,15.3104157]
[1644589195228,40.03603657,107.27,107.24,1.3205157]
[1644589195429,44.69603657,107.27,107.24,1.3205157]
[1644589196534,44.69603657,107.27,107.24,15.3101157]
[1644589197135,40.03603657,107.27,107.24,15.3101157]
[1644589197536,13.99,107.3,107.24,15.3101157]
[1644589197735,4.66,107.29,107.25,17.01989997]
[1644589197935,4.66,107.3,107.25,18.34041567]
[1644589198137,4.66,107.31,107.25,18.34041567]
[1644589198535,35.27045961,107.3,107.25,18.34041567]
[1644589198739,4.66,107.29,107.25,18.34041567]
[1644589199444,35.27045961,107.3,107.25,18.34041567]
[1644589199848,35.27045961,107.3,107.25,17.01989997]
[1644589200142,35.27045961,107.3,107.25,18.34041567]
[1644589200344,35.27045961,107.3,107.25,17.01989997]
[1644589200744,45.8861678,107.28,107.25,18.34041567]
[1644589200945,45.8861678,107.28,107.26,3.03219997]
[1644589201145,45.8861678,107.28,107.26,13.9867]
[1644589201544,45.8861678,107.28,107.27,3.03219997]
[1644589201746,45.8861678,107.28,107.26,13.9867]
[1644589202145,45.8861678,107.28,107.27,3.03219997]
[1644589202345,45.8861678,107.28,107.26,13.9867]
[1644589202845,4.66,107.31,107.26,13.9867]
[1644589203046,48.0063,107.32,107.26,13.9867]
[1644589203247,4.66,107.34,107.27,13.44]
[1644589203446,24.0091,107.35,107.29,13.9829]
[1644589203647,6.0,107.33,107.29,27.4229]
[1644589203852,47.02516997,107.33,107.29,27.4229]
[1644589204846,47.27516997,107.33,107.29,27.4229]
[1644589207148,0.25,107.33,107.29,27.4229]
[1644589207573,6.0,107.34,107.29,27.4229]
[1644589207772,4.659,107.33,107.29,13.44]
[1644589208172,4.659,107.33,107.28,13.9843]
[1644589208574,37.19011313,107.32,107.28,13.9843]
[1644589209673,37.44011313,107.32,107.28,13.9843]
[1644589209872,48.58906631,107.3,107.27,28.7461157]
[1644589210074,48.58906631,107.3,107.28,3.03219997]
[1644589210273,48.58906631,107.3,107.27,28.7461157]
[1644589211376,23.9507,107.33,107.27,27.4256]
[1644589211578,4.66,107.34,107.28,1.3205157]
[1644589211774,107.5489,107.37,107.29,14.7605157]
[1644589211975,28.0356,107.37,107.3,13.9808]
[1644589212274,38.79563753,107.35,107.3,13.9808]
[1644589212475,43.45363753,107.35,107.3,13.9808]
[1644589213476,43.70363753,107.35,107.3,13.9808]
[1644589214480,43.70363753,107.35,107.29,28.7436157]
[1644589214679,90.19363753,107.35,107.29,27.4231]
[1644589214878,90.19363753,107.35,107.29,13.9831]
[1644589215281,6.0,107.34,107.27,37.8805157]
[1644589215482,43.20043346,107.33,107.27,37.8805157]
[1644589215683,43.20043346,107.33,107.28,13.9841]
[1644589217682,43.45043346,107.33,107.28,13.9841]
[1644589217884,57.43553346,107.33,107.27,14.7605157]
[1644589218084,6.0,107.32,107.26,0.024]
[1644589218283,4.66,107.31,107.25,1.3205157]
[1644589218486,4.66,107.31,107.24,1.3205157]
[1644589218699,6.0,107.3,107.23,1.3205157]
[1644589218894,46.73467097,107.29,107.23,1.3205157]
[1644589219085,13.9922,107.28,107.23,1.3205157]
[1644589219298,41.53260755,107.27,107.22,15.3124157]
[1644589219485,52.28460755,107.27,107.22,15.3124157]
[1644589220086,52.28460755,107.27,107.23,1.3205157]
[1644589220485,52.28460755,107.27,107.22,15.3124157]
[1644589221285,6.0,107.26,107.16,27.9843893]
[1644589221488,4.663,107.25,107.16,24.0207]
[1644589221686,6.0,107.24,107.17,4.37348548]
[1644589221889,4.663,107.23,107.17,4.37348548]
[1644589222288,43.55721704,107.22,107.17,4.37348548]
[1644589222688,43.55721704,107.22,107.16,24.0207]
[1644589222889,4.664,107.21,107.13,52.1941]
[1644589223088,41.08778491,107.2,107.14,10.37206534]
[1644589223288,41.08778491,107.2,107.15,4.37206534]
[1644589223489,41.08778491,107.2,107.14,6.25]
[1644589223790,41.08778491,107.2,107.15,13.9985]
[1644589224591,41.33778491,107.2,107.15,13.9985]
[1644589224789,41.33778491,107.2,107.16,41.68579205]
[1644589225192,41.33778491,107.2,107.15,13.9985]
[1644589226195,41.33778491,107.2,107.15,60.5121795]
[1644589226899,41.33778491,107.2,107.15,13.9985]
[1644589227196,41.33778491,107.2,107.14,13.44]
[1644589227395,41.33778491,107.2,107.14,27.6898]
[1644589227596,41.33778491,107.2,107.14,13.69]
[1644589227597,6.0,107.19,107.14,13.69]
[1644589227997,37.31074994,107.18,107.14,13.69]
[1644589228199,37.31074994,107.18,107.11,47.9585]
[1644589228397,37.31074994,107.18,107.13,14.0013]
[1644589230603,4.666,107.17,107.12,14.003]
[1644589231302,41.68965617,107.16,107.11,63.78216791]
[1644589231504,41.68965617,107.16,107.11,2.38366791]
[1644589231907,41.68965617,107.16,107.1,27.4457]
[1644589232501,41.68965617,107.16,107.1,13.44]
[1644589232702,41.68965617,107.16,107.1,48.84676769]
[1644589233504,41.68965617,107.16,107.12,36.81580749]
[1644589233702,41.93965617,107.16,107.12,36.81580749]
[1644589233903,41.68965617,107.16,107.12,36.81580749]
[1644589234102,41.68965617,107.16,107.11,16.38736791]
[1644589234302,41.68965617,107.16,107.11,16.63736791]
[1644589234507,41.68965617,107.16,107.09,0.024]
[1644589234702,41.68965617,107.16,107.1,0.024]
[1644589235006,46.35665617,107.16,107.1,0.024]
[1644589235202,46.60665617,107.16,107.1,0.024]
[1644589235401,41.93965617,107.16,107.1,2.40766791]
[1644589235601,41.93965617,107.16,107.11,44.38486633]
[1644589235802,4.667,107.18,107.11,44.63486633]
[1644589236002,4.667,107.18,107.12,2.40766791]